Cogmind - Beta 17.1 @@@ ROGUE MODE // 2026.08.28 @ 20:43:58 Player: Cereal Killer Result: Core destroyed Performance ------------- Evolutions (4) 2000 Regions Visited (18) 3600 Robots Destroyed (136) 680 Value Destroyed (5930) 5930 Prototype IDs (26) 520 Alien Tech Used (1) 200 Bonus (12175) 12175 TOTAL SCORE: 25105 Bonus ------- High Alert Combat Kills 198 Follower Combat Kills 503 Prayed to X0-1V1 5000 Major X0-1V1 Interference 5100 Entered Garrisons 200 Met Data Miner 300 Met Imprinter 300 Was Imprinted 300 Acquired ECA 300 Friendly Fire -26 Cogmind --------- Core Integrity 0/950 Matter 204/300 Energy 1100/1100 System Corruption 22% Temperature Cool (0) Movement Core (50) Location -5/Proximity Caves Parts ------- > --- POWER (2) -------- (None) > --- PROPULSION (4) --- (None) > --- UTILITY (7) ------ (None) > --- WEAPON (3) ------- (None) > --- INVENTORY (5) ---- CR-A16's Pointy Stick Peak State ------------ > --- POWER ------------ Reinforced Deuterium Engine Light Antimatter Reactor > --- PROPULSION ------- Armored Treads Carbon-fiber Leg Armored Huge Wheel > --- UTILITY ---------- Large Storage Unit Experimental Core Analyzer Experimental Armor Integrity Analyzer Experimental Power Shielding Hacking Suite Experimental System Shield X0-1V1's Piety Tracker > --- WEAPON ----------- Heavy Laser Plasma Rifle Plasma Rifle Plasma Cannon Cooled Plasma Cannon Heavy Machine Gun > --- INVENTORY -------- Light Angular Momentum Engine Carbon-fiber Leg Compact Wheel Advanced Heat Sink Advanced Heat Sink Improved Cooling System Matter Compressor Improved Trap Scanner Improved Melee Analysis Suite Launcher Loader Experimental Power Shielding Hardlight Generator Dimensional Node Initializer CR-A16's Pointy Stick [Rating: 112] Favorites ----------- Power Reinforced Deuterium Engine Engine Reinforced Deuterium Engine Power Core Light Nuclear Core Reactor Light Antimatter Reactor Propulsion Wheel Treads Improved Medium Treads Leg Aluminum Leg Wheel Wheel Flight Unit Improved Flight Unit Utility X0-1V1's Piety Tracker Device X0-1V1's Piety Tracker Storage Small Storage Unit Processor Experimental Core Analyzer Hackware Experimental System Shield Protection Hardened Medium Armor Plating Weapon Flak Cannon Energy Gun Plasma Rifle Energy Cannon Plasma Cannon Ballistic Gun Heavy Machine Gun Ballistic Cannon Flak Cannon Launcher Improved Grenade Launcher Special Weapon Mining Laser Impact Weapon Powered Hammer Slashing Weapon Makeshift Sword Piercing Weapon CR-A16's Pointy Stick Build | -11 -10 -10 -9 -9 -9 -8 -8 -8 -7 -7 -7 -7 -6 -6 -6 -6 -6 -5 ------- Run | Yrd Mat Min Mat Min Exi Min Mat Gar Fac Low Low Zio Pro Fac Low Low Dat Pro Slots Evolved 8 | . . . 2 . . . 2 . 2 . . . . 2 . . . . Power 1 | . . . . . . . . . 1 . . . . . . . . . Propulsion 2 | . . . 1 . . . 1 . . . . . . . . . . . Utility 4 | . . . 1 . . . 1 . . . . . . 2 . . . . Weapon 1 | . . . . . . . . . 1 . . . . . . . . . Parts Attached 106 | 4 13 3 9 2 . 2 6 9 6 12 . 8 5 18 6 . 1 2 Power 13 | 1 1 1 1 . . . . . 2 2 . . 2 1 1 . . 1 Engine 11 | 1 1 1 1 . . . . . 2 1 . . 2 . 1 . . 1 Core 1 | . . . . . . . . . . 1 . . . . . . . . Reactor 1 | . . . . . . . . . . . . . . 1 . . . . Propulsion 30 | 2 3 1 3 . . 1 1 4 3 4 . . 2 6 . . . . Treads 5 | . . . . . . . . 1 . 2 . . 2 . . . . . Leg 6 | . . . . . . . . 3 . . . . . 3 . . . . Wheel 18 | 2 3 1 2 . . 1 1 . 3 2 . . . 3 . . . . Hover . | . . . . . . . . . . . . . . . . . . . Flight 1 | . . . 1 . . . . . . . . . . . . . . . Utility 33 | 1 3 . 3 . . 1 3 3 1 2 . 5 1 5 4 . 1 . Device 10 | . 1 . 1 . . . 1 . 1 1 . . 1 3 . . 1 . Storage 2 | 1 . . . . . . . . . . . . . 1 . . . . Processor 10 | . 1 . 1 . . . . 1 . 1 . 4 . . 2 . . . Hackware 2 | . . . . . . . . . . . . 1 . 1 . . . . Protection 9 | . 1 . 1 . . 1 2 2 . . . . . . 2 . . . Artifact . | . . . . . . . . . . . . . . . . . . . Weapon 30 | . 6 1 2 2 . . 2 2 . 4 . 3 . 6 1 . . 1 Energy Gun 5 | . 2 . . . . . . . . . . . . 3 . . . . Energy Cannon 2 | . . . . . . . . . . . . . . 2 . . . . Ballistic Gun 4 | . 3 . . . . . . . . . . . . 1 . . . . Ballistic Cannon 7 | . . . 2 1 . . 1 . . 2 . . . . . . . 1 Launcher 5 | . . . . 1 . . . 1 . . . 3 . . . . . . Special Weapon 3 | . 1 1 . . . . . 1 . . . . . . . . . . Impact Weapon 1 | . . . . . . . 1 . . . . . . . . . . . Slashing Weapon 2 | . . . . . . . . . . 2 . . . . . . . . Piercing Weapon 1 | . . . . . . . . . . . . . . . 1 . . . Special Melee Weapon . | . . . . . . . . . . . . . . . . . . . Unidentified Prototypes 8 | . 1 . 1 . . . . . . . . 6 . . . . . . Parts Lost 59 | . 6 3 . . . 2 1 5 2 12 . . 3 6 15 . . 4 Power 8 | . 1 1 . . . . . . 1 2 . . 1 1 . . . 1 Propulsion 21 | . 3 1 . . . 1 . 3 1 5 . . 2 2 2 . . 1 Utility 18 | . . . . . . 1 1 2 . 3 . . . 1 9 . . 1 Weapon 12 | . 2 1 . . . . . . . 2 . . . 2 4 . . 1 Highest Loss Streak 15 | . 4 2 . . . 2 1 2 1 8 . . 2 4 15 . . 4 To Critical Strikes . | . . . . . . . . . . . . . . . . . . . Average Backups 6 | 2 6 7 7 8 8 7 8 7 4 3 3 4 4 6 12 4 4 3 Power . | . 1 1 . 1 1 1 2 2 1 . . . . . 1 1 1 . Propulsion . | . . 1 . . . . . . 1 1 . . . . 1 1 1 . Utility 1 | . . 1 . 1 1 . . . . . . . . 3 6 . . . Weapon 3 | 1 3 3 4 5 5 5 5 3 2 2 2 3 2 1 2 1 1 1 Tool/Special . | . . . . . . . . . . . . . . . . . . . Unused Backups 19 | . 2 . 2 . . 1 . 2 . 1 . 2 . 4 5 . . . Power 2 | . 1 . 1 . . . . . . . . . . . . . . . Propulsion 5 | . 1 . 1 . . . . . . . . . . 2 1 . . . Utility 5 | . . . . . . . . 1 . . . . . 1 3 . . . Weapon 6 | . . . . . . 1 . 1 . 1 . 2 . . 1 . . . Tool/Special 1 | . . . . . . . . . . . . . . 1 . . . . Average Slot Usage (%) 87 | . 93 90 99 100 100 98 86 89 72 82 85 89 91 92 61 6 6 18 Engine 9 | . 14 13 10 10 10 10 8 8 5 8 7 7 9 9 8 . . 3 Core 1 | . . . . . . . . . . 1 7 7 3 . . . . . Treads 7 | . . . . . . . . 5 6 5 14 14 17 11 . . . 6 Leg 2 | . . . . . . . . 13 4 . . . . 3 . . . . Wheel 11 | . 23 19 32 30 30 28 21 4 7 17 7 7 3 4 8 . . . Device 8 | . . 14 17 10 10 10 8 8 7 9 7 7 8 14 5 . 1 6 Storage 4 | . 14 14 10 10 10 10 8 6 . . . . . 1 4 . . . Processor 12 | . 3 . 3 10 10 10 8 13 14 16 21 21 19 11 10 . . . Hackware 2 | . . . . . . . . . . . . 4 7 7 4 . . . Protection 4 | . 8 . 1 10 10 10 14 10 7 3 . . . 5 . . . . Energy Gun 1 | . . . 9 . . . . . . . . . . 2 9 . . . Energy Cannon 1 | . . . . . . . . . . . . . . 6 . . . . Ballistic Gun 5 | . 25 26 . . . . . . 12 5 . . . 3 4 . . . Ballistic Cannon 10 | . . . 10 18 20 20 13 11 . 8 21 19 20 6 . . . 3 Launcher 1 | . . . . 2 . . . 3 7 . . 1 . . . . . . Peak Build Rating 112 | 4 20 20 31 31 31 31 34 40 51 54 54 83 85 112 84 6 19 27 Average Rating 54 | 3 7 19 27 30 31 30 33 37 40 44 53 71 81 97 64 6 9 21 On Entrance 34 | . 4 20 20 31 31 31 30 34 31 51 53 54 80 83 77 6 6 16 Avg Prop Armor Cover (%) 12 | . . . . . . . . 5 5 18 14 14 14 11 . . . . Naked Turns 18 | . . . . . . . . . . . . . . . 18 . . . Heaviest Build 81 | 10 16 15 29 29 29 29 31 42 46 46 41 43 57 81 65 3 4 . Greatest Support 80 | 26 32 26 36 36 36 36 42 42 46 60 10 10 80 80 38 3 3 . Greatest Overweight (x) 4 | . 1 . . . . 1 1 3 1 4 4 4 4 2 1 . 1 . Average Overweight (x) 1 | . . . . . . . . . . 1 4 3 2 1 . . . . Largest Inventory Capacity 15 | 8 8 8 8 8 8 8 8 8 5 5 5 5 5 15 15 5 5 5 Average Capacity 6 | 7 8 8 8 8 8 8 8 7 5 5 5 5 5 7 13 5 5 5 Most Carried 15 | 4 8 8 8 8 8 8 8 8 5 5 5 5 5 15 15 4 5 4 Average Carried 6 | 2 6 7 7 8 8 7 8 7 4 3 3 4 4 7 13 4 4 2 Final Capacity 15 | 8 8 8 8 8 8 8 8 5 5 5 5 5 5 15 5 5 5 5 Final Carried 14 | 4 8 6 8 8 8 8 8 5 4 3 5 5 5 14 4 4 5 1 Class Distribution -------------------- 48% | Scavenger-Gunner 33% | Mutant 8% | Scavenger-Mutant 3% | Gunner Dominant Class ---------------- Mutant | -10/Materials Mutant | -10/Mines Mutant | -9/Materials Mutant | -9/Mines Mutant | -9/Exiles Mutant | -8/Mines Mutant | -8/Materials Mutant | -8/Garrison Gunner | -7/Factory Scavenger-Gunner | -7/Lower Caves Scavenger-Gunner | -7/Lower Caves Scavenger-Gunner | -7/Zion Scavenger-Gunner | -6/Proximity Caves Scavenger-Gunner | -6/Factory Scavenger-Gunner | -6/Lower Caves Mutant | -6/Lower Caves Mutant | -6/Data Miner Mutant | -5/Proximity Caves Resources | -11 -10 -10 -9 -9 -9 -8 -8 -8 -7 -7 -7 -7 -6 -6 -6 -6 -6 -5 ----------- Run | Yrd Mat Min Mat Min Exi Min Mat Gar Fac Low Low Zio Pro Fac Low Low Dat Pro Matter Collected 4069 | 215 408 66 282 . . 271 244 425 191 396 . 100 449 899 123 . . . Remotely . | . . . . . . . . . . . . . . . . . . . Salvage Created 4741 | . 728 106 419 18 . 287 392 212 70 338 . . 422 1383 345 . . 21 Parts 234 | . 46 7 24 2 . 12 17 11 13 19 . . 6 56 19 . . 2 Haulers Intercepted 5 | . 2 . 2 . . . 1 . . . . . . . . . . . Recyclers Shooed 3 | . 1 . 1 . . 1 . . . . . . . . . . . . Parts Field Recycled . | . . . . . . . . . . . . . . . . . . . Retrieved Matter . | . . . . . . . . . . . . . . . . . . . Parts Self-Destructed 54 | . . . . . . . . . . 21 5 6 8 . 14 . . . Prevented 7 | . . . . . . . . . . . 1 . 6 . . . . . Parts Restored . | . . . . . . . . . . . . . . . . . . . Kills | -11 -10 -10 -9 -9 -9 -8 -8 -8 -7 -7 -7 -7 -6 -6 -6 -6 -6 -5 ------- Run | Yrd Mat Min Mat Min Exi Min Mat Gar Fac Low Low Zio Pro Fac Low Low Dat Pro Combat Hostiles Destroyed 107 | . 12 3 8 3 . 6 9 9 1 9 . . 13 27 6 . . 1 Melee 1 | . . . . . . . . . 1 . . . . . . . . . Guns 30 | . 12 3 2 . . . . . . 1 . . . 6 6 . . . Cannons 60 | . . . 6 . . 6 9 7 . 3 . . 12 16 . . . 1 AOE 14 | . . . . 3 . . . 2 . 4 . . 1 4 . . . . Classes Destroyed 16 | . 8 . 1 . . . 1 1 . 1 . . 3 1 . . . . Worker 7 | . 2 . . . . 1 1 . 2 . . . . 1 . . . . Builder 6 | . 1 . . . . . 3 . 1 . . . . 1 . . . . Tunneler 4 | . 1 . . . . 2 . . . . . . . 1 . . . . Hauler 5 | . 2 . 2 . . . 1 . . . . . . . . . . . Recycler 6 | . 2 . 1 . . 1 2 . . . . . . . . . . . Watcher 1 | . 1 . . . . . . . . . . . . . . . . . Swarmer 19 | . 3 . . 3 . . 3 1 . 4 . . 2 1 1 . . 1 Grunt 56 | . 9 3 5 . . 6 4 4 1 3 . . 7 12 2 . . . Brawler 2 | . . . . . . . . . . . . . 1 1 . . . . Duelist 2 | . . . . . . . . . . . . . 1 1 . . . . Protector 1 | . . . . . . . . . . . . . 1 . . . . . Sentry 14 | . . . 3 . . . 1 1 . 1 . . 1 6 1 . . . Hunter 2 | . . . . . . . 1 1 . . . . . . . . . . Programmer 8 | . . . . . . . . 2 . . . . . 5 1 . . . Heavy 1 | . . . . . . . . . . . . . . 1 . . . . Behemoth 2 | . . . . . . . . . . 1 . . . . 1 . . . Decomposer 1 | . . . . . . . . . . 1 . . . . . . . . Best Kill Streak 5 | . 4 2 2 3 . 5 4 4 1 4 . . 5 5 4 . . 1 Combat Bots Only 5 | . 3 2 2 3 . 3 4 4 1 4 . . 5 4 4 . . 1 Max Kills in Single Turn 4 | . 1 1 1 3 . 1 2 1 1 4 . . 2 3 1 . . 1 Gunslinging . | . . . . . . . . . . . . . . . . . . . Exploded 4 | . . . . 3 . . . 1 . 4 . . 1 1 . . . . Melee 1 | . . . . . . . . . 1 . . . . . . . . . Uniques/NPCs Destroyed . | . . . . . . . . . . . . . . . . . . . Combat | -11 -10 -10 -9 -9 -9 -8 -8 -8 -7 -7 -7 -7 -6 -6 -6 -6 -6 -5 -------- Run | Yrd Mat Min Mat Min Exi Min Mat Gar Fac Low Low Zio Pro Fac Low Low Dat Pro Hostile Shots Fired 830 | . 72 25 19 2 . 28 26 64 32 117 2 . 83 217 114 . . 29 Missed 273 | . 18 2 10 . . 8 7 23 5 44 2 . 31 91 23 . . 9 Hits 557 | . 54 23 9 2 . 20 19 41 27 73 . . 52 126 91 . . 20 Melee 35 | . . . . . . . . 5 . . . . . . 30 . . . Projectile 522 | . 54 23 9 2 . 20 19 36 27 73 . . 52 126 61 . . 20 Critical Strikes 25 | . 1 1 . . . . 2 3 1 3 . . 3 6 5 . . . Actively Blocked 4 | . . . . . . . 2 1 . . . . . . 1 . . . Part Disruptions 1 | . . . . . . . . . . . . . . . . . . 1 Damage Taken 8864 | . 665 301 108 16 . 335 260 699 489 1161 . . 917 1427 1937 . . 549 Core 2232 | . 150 74 11 . . 51 18 155 43 189 . . 87 342 817 . . 295 Absorbed by Shields 356 | . . . . . . . . 4 . . . . . 288 64 . . . Redirected to Shielding 394 | . 13 . . . . . 68 46 . . . . . 99 168 . . . Ignored by Resistances 171 | . . . . . . . . . . 56 . . . . 115 . . . Regen/Repaired (Parts) 446 | . . . . . . . . . 48 . . 398 . . . . . . Core Remaining (%) 69 | 100 . 10 . . . 84 . 73 . . . . 81 . . . . . Volleys Fired 342 | . 94 17 23 1 . 19 20 39 5 18 . . 23 58 20 . . 5 Largest 6 | . 2 2 2 1 . 2 2 2 2 3 . . 3 6 4 . . 1 Hottest 364 | . 120 120 90 30 . 74 74 74 60 118 . . 118 364 209 . . 44 Shots Fired 729 | . 171 33 46 1 . 38 40 70 10 29 . . 63 177 46 . . 5 Gun 324 | . 151 32 12 . . . . . 10 10 . . . 68 41 . . . Cannon 353 | . . . 34 . . 38 40 55 . 18 . . 61 97 5 . . 5 Launcher 29 | . . . . 1 . . . 13 . 1 . . 2 12 . . . . Special 23 | . 20 1 . . . . . 2 . . . . . . . . . . Kinetic 523 | . 147 31 34 . . 38 40 55 10 28 . . 61 59 15 . . 5 Thermal 160 | . 20 1 . . . . . 2 . . . . . 106 31 . . . Explosive 29 | . . . . 1 . . . 13 . 1 . . 2 12 . . . . Electromagnetic 17 | . 4 1 12 . . . . . . . . . . . . . . . Robot Hit Streak 18 | . 9 7 13 2 . 8 11 9 3 8 . . 8 18 11 . . 1 Robot Miss Streak 7 | . 3 2 7 . . 5 7 4 1 2 . . 6 6 3 . . 4 Penetration Max . | . . . . . . . . . . . . . . . . . . . Secondary Targets 4 | . 2 . . . . . . . . . . . . . 2 . . . Max Gunslinging Chain 1 | . 1 . . . . . . . . . . . . . 1 . . . Shots Hit Robots 507 | . 99 23 39 1 . 32 40 49 6 28 . . 44 113 32 . . 1 Core Hits 420 | . 41 10 34 3 . 47 42 62 6 20 . . 68 69 17 . . 1 Critical Kills 2 | . 1 . . . . . . . . . . . . . 1 . . . Critical Parts Destroyed . | . . . . . . . . . . . . . . . . . . . Critical Strikes 8 | . 1 . . . . . . . . . . . 2 4 1 . . . Burn 3 | . . . . . . . . . . . . . . 3 . . . . Destroy 2 | . 1 . . . . . . . . . . . . . 1 . . . Blast 3 | . . . . . . . . . . . . . 2 1 . . . . Melee Attacks 17 | . . . . . . . 5 . . 7 . . . . 5 . . . Impact 5 | . . . . . . . 5 . . . . . . . . . . . Slashing 7 | . . . . . . . . . . 7 . . . . . . . . Piercing 5 | . . . . . . . . . . . . . . . 5 . . . Sneak Attacks 6 | . . . . . . . 5 . . 1 . . . . . . . . Combat Hostiles . | . . . . . . . . . . . . . . . . . . . Follow-up Attacks 2 | . . . . . . . . . . 2 . . . . . . . . Damage Inflicted 11932 | . 1022 209 559 139 . 660 1018 1164 172 954 . . 1497 3605 833 . . 100 Guns 3089 | . 974 185 121 . . . . . 136 208 . . . 861 604 . . . Cannons 6139 | . . . 438 . . 660 656 911 . 323 . . 1122 1769 160 . . 100 Explosions 1964 | . . . . 139 . . . 231 . 244 . . 375 975 . . . . Melee 566 | . . . . . . . 318 . . 179 . . . . 69 . . . Ramming 58 | . . . . . . . . 22 36 . . . . . . . . . Kinetic 6843 | . 936 169 438 . . 660 656 911 136 531 . . 1122 878 306 . . 100 Thermal 2282 | . 48 24 . . . . . . . . . . . 1752 458 . . . Explosive 1964 | . . . . 139 . . . 231 . 244 . . 375 975 . . . . Electromagnetic 175 | . 38 16 121 . . . . . . . . . . . . . . . Impact 318 | . . . . . . . 318 . . . . . . . . . . . Slashing 223 | . . . . . . . 44 . . 179 . . . . . . . . Piercing 69 | . . . . . . . . . . . . . . . 69 . . . Highest Corruption 22 | . . . . . . . . . . 1 1 1 . 2 22 22 22 22 Average Corruption 3 | . . . . . . . . . . 1 1 1 . 2 6 22 22 22 Corruption Purged . | . . . . . . . . . . . . . . . . . . . Corruption Blocked . | . . . . . . . . . . . . . . . . . . . Effects 28 | . . . . . . . . . . 4 1 1 . 3 12 2 4 1 Message Errors 3 | . . . . . . . . . . 1 . . . . . . 1 1 Matter Fused 6 | . . . . . . . . . . 1 . . . 3 2 . . . Heat Flow Errors 6 | . . . . . . . . . . 1 1 . . . 2 1 1 . Energy Discharges 4 | . . . . . . . . . . . . . . . 2 1 1 . Data Loss (minor) 5 | . . . . . . . . . . 1 . 1 . . 2 . 1 . Data Loss (major) 1 | . . . . . . . . . . . . . . . 1 . . . Alerts 1 | . . . . . . . . . . . . . . . 1 . . . Weapon Failures 2 | . . . . . . . . . . . . . . . 2 . . . Overload Shots 1 | . . . . . . . . . . . . . . 1 . . . . Overflow Damage 262 | . . . . . . . 195 12 . . . . 2 16 29 . . 8 Projectiles 31 | . . . . . . . . . . . . . . 2 21 . . 8 Explosions 28 | . . . . . . . . 12 . . . . 2 14 . . . . Melee 203 | . . . . . . . 195 . . . . . . . 8 . . . Knockbacks 75 | . . . 7 . . 25 18 10 1 . . . 13 . . . . 1 Impact 2 | . . . . . . . 1 . 1 . . . . . . . . . Kinetic 65 | . . . 7 . . 21 17 8 . . . . 11 . . . . 1 Secondary 8 | . . . . . . 4 . 2 . . . . 2 . . . . . Self-Inflicted Damage 168 | . . . . . . . . 41 4 . . . 57 66 . . . . Shots 7 | . . . . . . . . 3 . . . . 2 2 . . . . Rammed 20 | . . . . . . . . . 20 . . . . . . . . . Targets Rammed 28 | . . . . . . . . 7 21 . . . . . . . . . Kicked 7 | . . . . . . . . 7 . . . . . . . . . . Crushed 1 | . . . . . . . . . 1 . . . . . . . . . Highest Temperature 390 | . 160 38 18 . . 149 . . . 264 109 . 51 390 222 85 85 . Average Temperature 61 | . 58 13 9 . . 65 . . . 111 62 . 12 86 55 51 51 . Received Heat Transfer 2843 | . 327 189 57 . . 180 72 117 261 700 . . 343 334 263 . . . Effects 3 | . . . . . . . . . . 2 . . . 1 . . . . Shutdowns 1 | . . . . . . . . . . . . . . 1 . . . . Interference 2 | . . . . . . . . . . 2 . . . . . . . . Siege Activations . | . . . . . . . . . . . . . . . . . . . Martial Activations . | . . . . . . . . . . . . . . . . . . . Shielding Activations . | . . . . . . . . . . . . . . . . . . . Robots Disrupted . | . . . . . . . . . . . . . . . . . . . Combat Hostiles . | . . . . . . . . . . . . . . . . . . . Robots Corrupted 4 | . . . . . . . 4 . . . . . . . . . . . Combat Hostiles . | . . . . . . . . . . . . . . . . . . . Parts Fried 5 | . . . . . . . 5 . . . . . . . . . . . Impact Corruptions 10 | . . . . . . . 10 . . . . . . . . . . . Robots Melted 1 | . . . . . . . . . . . . . . 1 . . . . Combat Hostiles 1 | . . . . . . . . . . . . . . 1 . . . . Parts Melted 12 | . . . . . . . . . . . . . . 12 . . . . Heat Transferred 4492 | . 100 50 . . . . . . . . . . . 3496 846 . . . Parts Sabotaged . | . . . . . . . . . . . . . . . . . . . Parts Stolen . | . . . . . . . . . . . . . . . . . . . Parts Stripped . | . . . . . . . . . . . . . . . . . . . Power Chain Reactions . | . . . . . . . . . . . . . . . . . . . Alert | -11 -10 -10 -9 -9 -9 -8 -8 -8 -7 -7 -7 -7 -6 -6 -6 -6 -6 -5 ------- Run | Yrd Mat Min Mat Min Exi Min Mat Gar Fac Low Low Zio Pro Fac Low Low Dat Pro Maximum Alert Level 3 | . . . 1 . . . 1 3 2 . . . . 3 . . . . Low Security (%) 64 | 100 100 100 77 100 . 100 63 . . . . . . 70 . . . . Level 1 9 | . . . 22 . . . 36 20 . . . . . 7 . . . . Level 2 20 | . . . . . . . . 47 100 . . . . 17 . . . . Level 3 6 | . . . . . . . . 31 . . . . . 4 . . . . Level 4 . | . . . . . . . . . . . . . . . . . . . Level 5 . | . . . . . . . . . . . . . . . . . . . High Security . | . . . . . . . . . . . . . . . . . . . Max Security . | . . . . . . . . . . . . . . . . . . . Peak Influence 830 | . 114 78 234 145 . 75 329 830 615 . . . . 778 . . . . Initial 435 | . . . 18 87 . . 23 200 435 . . . . 87 . . . . Average 212 | . 35 48 151 94 . 22 135 551 546 . . . . 182 . . . . Influence Increases 4962 | . 416 161 376 68 . 160 546 700 289 355 . . 480 1226 140 . . 45 Destroy 0b10 Robot/C 2500 | . 240 120 160 60 . 120 240 280 40 200 . . 360 540 120 . . 20 Destroy 0b10 Robot/NC 175 | . 45 . 15 . . 20 45 15 15 . . . 5 15 . . . . Destroy Leader 436 | . 46 30 54 . . 20 66 . 10 20 . . 30 130 20 . . 10 Allied During Kill 168 | . . 5 . . . . 34 14 9 30 . . 70 6 . . . . Successful Hack 60 | . 9 . 35 . . . 16 . . . . . . . . . . . Select Force Hacks 60 | . . . . . . . . . . . . . . 60 . . . . Disable Machine 135 | . . . . . . . . 15 . . . . . 120 . . . . Anti-Garrison Action 450 | . . . . . . . . 250 200 . . . . . . . . . Destroy Structure 273 | . 1 6 . 8 . . 40 111 . . . . . 107 . . . . Partial Spotted 15 | . . . . . . . . . 15 . . . . . . . . . Lose Combat Pursuer 330 | . 75 . . . . . 105 15 . 105 . . 15 . . . . 15 Miscellaneous 360 | . . . 112 . . . . . . . . . . 248 . . . . Influence Decreases 4947 | . 416 112 201 157 135 100 297 179 595 649 164 66 341 591 618 77 219 30 Entered New Map 1765 | . . . 31 137 135 . 37 109 395 195 44 66 . 52 288 57 219 . Time Decay 2265 | . 366 70 170 20 . 100 150 . 180 254 120 . 216 419 180 20 . . Lost Part 542 | . 50 22 . . . . 10 50 20 120 . . 30 60 150 . . 30 Lost Ally 375 | . . 20 . . . . 100 20 . 80 . . 95 60 . . . . Squads Dispatched 21 | . 1 . 1 . . . 3 . 4 . . . 1 11 . . . . Investigation 6 | . . . 1 . . . . . 2 . . . . 3 . . . . Extermination 3 | . . . . . . . . . 1 . . . . 2 . . . . Reinforcement 6 | . 1 . . . . . 2 . 1 . . . . 2 . . . . Assault 4 | . . . . . . . . . . . . . 1 3 . . . . Garrison 2 | . . . . . . . 1 . . . . . . 1 . . . . Intercept . | . . . . . . . . . . . . . . . . . . . Searches Triggered . | . . . . . . . . . . . . . . . . . . . Construction Impeded 1 | . . . . . . . 1 . . . . . . . . . . . Haulers Reinforced . | . . . . . . . . . . . . . . . . . . . Active Scanning Responses . | . . . . . . . . . . . . . . . . . . . Cargo Convoy Interrupts 1 | . . . . . . . . . . . . . . 1 . . . . Stealth | -11 -10 -10 -9 -9 -9 -8 -8 -8 -7 -7 -7 -7 -6 -6 -6 -6 -6 -5 --------- Run | Yrd Mat Min Mat Min Exi Min Mat Gar Fac Low Low Zio Pro Fac Low Low Dat Pro Distress Signals 5 | . . . 1 . . . 4 . . . . . . . . . . . Communications Jammed . | . . . . . . . . . . . . . . . . . . . Distress Signals . | . . . . . . . . . . . . . . . . . . . Times Spotted 180 | . 25 6 8 3 . 6 19 18 2 14 1 . 20 31 21 . . 6 Peak Tracking Total 10 | . 5 2 2 3 . 3 10 4 2 9 1 . 7 4 9 . . 5 Tactical Retreats 11 | . 3 . . . . . 3 1 . 2 . . 1 . . . . 1 Traps | -11 -10 -10 -9 -9 -9 -8 -8 -8 -7 -7 -7 -7 -6 -6 -6 -6 -6 -5 ------- Run | Yrd Mat Min Mat Min Exi Min Mat Gar Fac Low Low Zio Pro Fac Low Low Dat Pro Traps Triggered 7 | . . . . . . . . 5 1 . . . . 1 . . . . Indirectly . | . . . . . . . . . . . . . . . . . . . Trap Hack Attempts . | . . . . . . . . . . . . . . . . . . . Triggered . | . . . . . . . . . . . . . . . . . . . Disarmed . | . . . . . . . . . . . . . . . . . . . Reprogrammed . | . . . . . . . . . . . . . . . . . . . Reused . | . . . . . . . . . . . . . . . . . . . Traps Extracted . | . . . . . . . . . . . . . . . . . . . Installed . | . . . . . . . . . . . . . . . . . . . Triggered . | . . . . . . . . . . . . . . . . . . . Machines | -11 -10 -10 -9 -9 -9 -8 -8 -8 -7 -7 -7 -7 -6 -6 -6 -6 -6 -5 ---------- Run | Yrd Mat Min Mat Min Exi Min Mat Gar Fac Low Low Zio Pro Fac Low Low Dat Pro Machines Disabled 17 | . . . . . . . . 7 . 1 . . 1 8 . . . . Max in Single Turn 4 | . . . . . . . . 2 . 1 . . 1 4 . . . . Garrison Access 2 | . . . . . . . . . 1 . . . . 1 . . . . Garrison Relay 4 | . . . . . . . . 4 . . . . . . . . . . Phase Generator 1 | . . . . . . . . 1 . . . . . . . . . . Machines Repaired . | . . . . . . . . . . . . . . . . . . . Machines Dismantled . | . . . . . . . . . . . . . . . . . . . Machines Sabotaged . | . . . . . . . . . . . . . . . . . . . Overloaded Fab Kills . | . . . . . . . . . . . . . . . . . . . Hacking | -11 -10 -10 -9 -9 -9 -8 -8 -8 -7 -7 -7 -7 -6 -6 -6 -6 -6 -5 --------- Run | Yrd Mat Min Mat Min Exi Min Mat Gar Fac Low Low Zio Pro Fac Low Low Dat Pro Machines Accessed 26 | . 4 . 5 . 1 . 3 . 2 1 . 1 1 4 . . 4 . Terminals 12 | . 4 . 5 . . . 2 . . 1 . . . . . . . . Fabricators 1 | . . . . . . . . . . . . . . 1 . . . . Repair Stations 1 | . . . . . . . . . 1 . . . . . . . . . Recycling Units 1 | . . . . . . . . . . . . . . 1 . . . . Scanalyzers 2 | . . . . . . . . . . . . . . 2 . . . . Garrison Access 2 | . . . . . . . 1 . 1 . . . . . . . . . Total Hacks 99 | . 14 . 15 . 4 . 9 . 4 3 . 4 1 19 . . 26 . Successful 65 | . 3 . 7 . 4 . 5 . 2 3 . 4 1 10 . . 26 . Failed 32 | . 11 . 7 . . . 4 . 2 . . . . 8 . . . . Catastrophic 3 | . . . 1 . . . . . . . . . . 2 . . . . Database Lockouts 2 | . . . 1 . . . . . . . . . . 1 . . . . Manual 45 | . 10 . 8 . . . 6 . 3 . . . . 18 . . . . Terminals 40 | . 14 . 15 . . . 8 . . 3 . . . . . . . . Fabricators 4 | . . . . . . . . . . . . . . 4 . . . . Repair Stations 2 | . . . . . . . . . 2 . . . . . . . . . Recycling Units 3 | . . . . . . . . . . . . . . 3 . . . . Scanalyzers 12 | . . . . . . . . . . . . . . 12 . . . . Garrison Access 3 | . . . . . . . 1 . 2 . . . . . . . . . Terminal Hacks 48 | . 3 . 5 . 4 . 2 . . 3 . 4 1 . . . 26 . Record 19 | . . . . . 4 . . . . 3 . . 1 . . . 11 . Part Schematic 13 | . . . . . . . . . . . . 4 . . . . 9 . Robot Schematic 3 | . . . . . . . . . . . . . . . . . 3 . Robot Analysis 2 | . . . 1 . . . 1 . . . . . . . . . . . Prototype ID Bank 7 | . 2 . 1 . . . 1 . . . . . . . . . 3 . Branch Access Points 1 | . . . 1 . . . . . . . . . . . . . . . Locate Traps 2 | . 1 . 1 . . . . . . . . . . . . . . . Zone Layout 1 | . . . 1 . . . . . . . . . . . . . . . Fabricator Hacks 2 | . . . . . . . . . . . . . . 2 . . . . Load Schematic 1 | . . . . . . . . . . . . . . 1 . . . . Build 1 | . . . . . . . . . . . . . . 1 . . . . Repair Station Hacks . | . . . . . . . . . . . . . . . . . . . Recycling Unit Hacks . | . . . . . . . . . . . . . . . . . . . Scanalyzer 6 | . . . . . . . . . . . . . . 6 . . . . Insert Component 2 | . . . . . . . . . . . . . . 2 . . . . Retrieve Study 4 | . . . . . . . . . . . . . . 4 . . . . Garrison Access Hacks 1 | . . . . . . . 1 . . . . . . . . . . . Unlock Access 1 | . . . . . . . 1 . . . . . . . . . . . Unauthorized Hacks 8 | . . . 2 . . . 2 . 2 . . . . 2 . . . . Terminals 4 | . . . 2 . . . 2 . . . . . . . . . . . Botnet 2 | . . . 1 . . . 1 . . . . . . . . . . . Operators 2 | . . . 1 . . . 1 . . . . . . . . . . . Fabricators . | . . . . . . . . . . . . . . . . . . . Repair Stations 1 | . . . . . . . . . 1 . . . . . . . . . Patch 1 | . . . . . . . . . 1 . . . . . . . . . Recycling Units . | . . . . . . . . . . . . . . . . . . . Scanalyzers 2 | . . . . . . . . . . . . . . 2 . . . . Extract 2 | . . . . . . . . . . . . . . 2 . . . . Garrison Access 1 | . . . . . . . . . 1 . . . . . . . . . Jam 1 | . . . . . . . . . 1 . . . . . . . . . Data Cores Recovered . | . . . . . . . . . . . . . . . . . . . Used . | . . . . . . . . . . . . . . . . . . . Hacking Detections 14 | . 3 . 3 . . . 2 . 1 1 . . . 4 . . . . Full Trace Events 2 | . . . . . . . . . . 1 . . . 1 . . . . Feedback Events 1 | . . . . . . . . . . 1 . . . . . . . . Corruption 1 | . . . . . . . . . . 1 . . . . . . . . Feedback Blocked . | . . . . . . . . . . . . . . . . . . . Robot Schematics Acquired 10 | . . . . . . . . . . . . 3 . 4 . . 3 . Robots Built . | . . . . . . . . . . . . . . . . . . . Authchips . | . . . . . . . . . . . . . . . . . . . Time . | . . . . . . . . . . . . . . . . . . . Total Robot Build Rating . | . . . . . . . . . . . . . . . . . . . Part Schematics Acquired 34 | . . . . . . . . . . . . 18 . 7 . . 9 . Parts Built . | . . . . . . . . . . . . . . . . . . . Authchips . | . . . . . . . . . . . . . . . . . . . Time 76 | . . . . . . . . . . . . . . 76 . . . . Total Part Build Rating . | . . . . . . . . . . . . . . . . . . . Part Studies Acquired 4 | . . . . . . . . . . . . . . 4 . . . . Parts Repaired . | . . . . . . . . . . . . . . . . . . . Time . | . . . . . . . . . . . . . . . . . . . Parts Recycled . | . . . . . . . . . . . . . . . . . . . Recycled Matter . | . . . . . . . . . . . . . . . . . . . Retrieved Matter . | . . . . . . . . . . . . . . . . . . . Retrieved Components . | . . . . . . . . . . . . . . . . . . . Parts Scanalyzed 1 | . . . . . . . . . . . . . . 1 . . . . Part Schematics Acquired . | . . . . . . . . . . . . . . . . . . . Parts Damaged . | . . . . . . . . . . . . . . . . . . . Bothacking | -11 -10 -10 -9 -9 -9 -8 -8 -8 -7 -7 -7 -7 -6 -6 -6 -6 -6 -5 ------------ Run | Yrd Mat Min Mat Min Exi Min Mat Gar Fac Low Low Zio Pro Fac Low Low Dat Pro Used RIF Installer . | . . . . . . . . . . . . . . . . . . . Robots Hacked . | . . . . . . . . . . . . . . . . . . . Non-combat . | . . . . . . . . . . . . . . . . . . . Combat . | . . . . . . . . . . . . . . . . . . . Robot Hacks Applied . | . . . . . . . . . . . . . . . . . . . Relay Couplers Released 18 | . . . . . . . . 15 . . . . . 3 . . . . Machine Destruction 18 | . . . . . . . . 15 . . . . . 3 . . . . Fabnet Peak Effective % . | . . . . . . . . . . . . . . . . . . . Robots Rewired 4 | . . . . . . . . 2 . . . . 2 . . . . . Allies Hacked 2 | . . . . . . . . 1 . . . . . 1 . . . . Hacks Repelled . | . . . . . . . . . . . . . . . . . . . Allies | -11 -10 -10 -9 -9 -9 -8 -8 -8 -7 -7 -7 -7 -6 -6 -6 -6 -6 -5 -------- Run | Yrd Mat Min Mat Min Exi Min Mat Gar Fac Low Low Zio Pro Fac Low Low Dat Pro Total Allies 21 | . . 1 . . . . 5 2 4 . . 6 3 . . . . . Largest Group 6 | . . 1 . . . . 5 2 4 4 . 6 6 3 . . . . Highest-Rated Group 222 | . . 90 . . . . 125 78 171 171 . 222 222 160 . . . . Highest-Rated Ally 116 | . . 90 . . . . 25 39 43 43 . 51 116 110 . . . . Initial Warlord ECA Mod 6 | . . . . . . . . . 6 6 6 6 . . . . . . Total Orders . | . . . . . . . . . . . . . . . . . . . Ally Attacks 130 | . . 11 . . . . 40 16 2 13 . . 42 6 . . . . Total Damage 2951 | . . 370 . . . . 628 271 40 367 . . 1209 66 . . . . Kills 22 | . . 3 . . . . 5 6 1 1 . . 6 . . . . . Allies Corrupted 2 | . . . . . . . . 1 . . . . . 1 . . . . Allies Melted . | . . . . . . . . . . . . . . . . . . . X0-1V1 Amusement Gains 224 | . 6 . . 20 . . . 30 15 10 . . . 5 98 . . 40 Average Entertainment 12 | . 6 3 2 20 . 5 2 15 45 35 23 . 5 1 9 53 . 11 Good Acts 54 | . . 1 2 2 . 1 10 3 4 5 1 . 3 17 3 2 . . Bad Acts 35 | . . 1 3 1 . 1 . 9 . 3 . . 2 13 2 . . . Intel | -11 -10 -10 -9 -9 -9 -8 -8 -8 -7 -7 -7 -7 -6 -6 -6 -6 -6 -5 ------- Run | Yrd Mat Min Mat Min Exi Min Mat Gar Fac Low Low Zio Pro Fac Low Low Dat Pro Active Infowar (turns) 1109 | . . . . . . . . . . . . 3 . 1106 . . . . Optics 3 | . . . . . . . . . . . . 3 . . . . . . Traps 1106 | . . . . . . . . . . . . . . 1106 . . . . Robot Analysis Total 2 | . . . 1 . . . 1 . . . . . . . . . . . Derelict Logs Recovered 4 | . . . . . . . . . . 1 . 1 1 . 1 . . . Drone Launches . | . . . . . . . . . . . . . . . . . . . Drone Recoveries . | . . . . . . . . . . . . . . . . . . . Zionite Intel Received 3 | . . . . . . . . . . . . . . 3 . . . . Prototype Stockpiles 1 | . . . . . . . . . . . . . . 1 . . . . Unaware Schematics 1 | . . . . . . . . . . . . . . 1 . . . . Active Terminals 1 | . . . . . . . . . . . . . . 1 . . . . Exploration | -11 -10 -10 -9 -9 -9 -8 -8 -8 -7 -7 -7 -7 -6 -6 -6 -6 -6 -5 ------------- Run | Yrd Mat Min Mat Min Exi Min Mat Gar Fac Low Low Zio Pro Fac Low Low Dat Pro Turns Passed 8895 | 56 1127 145 356 43 165 372 314 829 374 553 255 1395 818 1588 379 55 57 14 Spaces Moved 6129 | 45 832 90 273 45 192 345 211 439 184 452 183 963 413 946 306 110 100 . Core 306 | 4 . . . . . . . . . 10 . . . . 82 110 100 . Treads 549 | . . . . . . . . 72 79 8 . . 168 222 . . . . Legs 377 | . . . . . . . . 277 . . . . . 100 . . . . Wheels 4897 | 41 832 90 273 45 192 345 211 90 105 434 183 963 245 624 224 . . . Hover . | . . . . . . . . . . . . . . . . . . . Flight . | . . . . . . . . . . . . . . . . . . . Fastest Speed 50 | 50 90 90 86 86 86 86 93 93 85 50 140 110 140 105 50 50 50 . Average Speed 117 | 86 93 98 86 86 86 86 98 148 158 98 140 139 148 141 90 50 54 . Slowest Speed 330 | 90 100 100 86 86 86 105 105 330 240 160 140 140 163 245 105 50 100 . Overloaded Moves . | . . . . . . . . . . . . . . . . . . . Propulsion Burnouts . | . . . . . . . . . . . . . . . . . . . Robots Hopped . | . . . . . . . . . . . . . . . . . . . Potential Cave-ins . | . . . . . . . . . . . . . . . . . . . Cave-ins Triggered . | . . . . . . . . . . . . . . . . . . . Exploration Rate (%) 45 | 4 97 30 28 17 61 78 32 60 7 71 40 89 64 23 53 26 78 3 Regions Visited 18 Branch Regions 12 Pre-discovered Areas 6 | . . . . . 1 . . . . 2 . 2 . . . . 1 . Known Exits Taken 7 | . . . 1 . . . 1 . 1 1 . 1 . 1 . 1 . . Unknown Exits Taken 10 | 1 1 1 . 1 1 1 . . . . 1 . 1 . 1 . 1 . Scrap Searched 8 | . . . . . . 2 . . . 2 1 2 1 . . . . . Spaces Dug 1 | . 1 . . . . . . . . . . . . . . . . . Terrain Destroyed 366 | . 4 . . 8 . . 11 145 . 13 . . 38 145 . . . 2 Melee . | . . . . . . . . . . . . . . . . . . . Projectile 30 | . 4 . . . . . . . . 2 . . 6 16 . . . 2 AOE 336 | . . . . 8 . . 11 145 . 11 . . 32 129 . . . . Terrain Rammed . | . . . . . . . . . . . . . . . . . . . Walls Destroyed . | . . . . . . . . . . . . . . . . . . . Machines Disabled . | . . . . . . . . . . . . . . . . . . . Actions | -11 -10 -10 -9 -9 -9 -8 -8 -8 -7 -7 -7 -7 -6 -6 -6 -6 -6 -5 --------- Run | Yrd Mat Min Mat Min Exi Min Mat Gar Fac Low Low Zio Pro Fac Low Low Dat Pro Total 7107 | 61 983 116 348 47 191 380 267 543 229 523 182 1012 567 1072 366 109 102 9 Wait 275 | 5 22 5 24 . . 11 23 4 6 22 . 27 103 11 12 . . . Move 6111 | 44 831 89 272 44 191 344 210 438 183 451 182 962 412 945 305 109 99 . Hop . | . . . . . . . . . . . . . . . . . . . Pick Up 85 | 8 15 1 10 . . 2 1 6 6 9 . 2 2 17 5 . 1 . Fast Attach 43 | . 2 . 4 . . . 3 5 . 4 . 8 4 11 2 . . . Attach 58 | 4 9 3 2 . . 1 . 5 7 8 . . . 7 7 . 1 4 Detach 6 | . . . . . . . . 3 . . . 2 . . . . 1 . Swap 43 | . 6 1 4 2 . 1 3 11 . 2 . 2 3 8 . . . . Drop 65 | . 4 . 9 . . 2 2 5 1 4 . 9 4 15 10 . . . Fire 342 | . 94 17 23 1 . 19 20 39 5 18 . . 23 58 20 . . 5 Melee 15 | . . . . . . . 5 . . 5 . . . . 5 . . . Ram 1 | . . . . . . . . . 1 . . . . . . . . . Kick 7 | . . . . . . . . 7 . . . . . . . . . . Crush 20 | . . . . . . . . . 20 . . . . . . . . . Escape Stasis 6 | . . . . . . . . 6 . . . . . . . . . . Rewire 30 | . . . . . . . . 14 . . . . 16 . . . . . Trap . | . . . . . . . . . . . . . . . . . . . Miscellaneous . | . . . . . . . . . . . . . . . . . . . Route ------- -11/Scrapyard -10/Materials (discovered 6 exits: *Mat x3 / [*Min x2] / [*Sub]) -10/Mines -9/Materials (discovered 3 exits: *Min / *Sto x2) -9/Mines -9/Exiles (discovered 2 exits: [*Min x2]) -8/Mines -8/Materials (discovered 2 exits: *Fac / Gar) -8/Garrison -7/Factory -7/Lower Caves -7/Lower Caves -7/Zion -6/Proximity Caves -6/Factory (discovered 2 exits: *Low x2) -6/Lower Caves -6/Lower Caves -6/Data Miner -5/Proximity Caves History --------- Turn | Location | Event 23 | -11/Scrapyard | Discovered new exit (range 15) 57 | -11/Scrapyard | Entered Materials 282 | -10/Materials | Discovered new exit (range 11) 303 | -10/Materials | Build established: Mutant 395 | -10/Materials | Discovered new exit (range 7) 445 | -10/Materials | Discovered new exit (range 16) 701 | -10/Materials | Lost 4 parts (1p2n1w) 751 | -10/Materials | Discovered new exit (range 11) 842 | -10/Materials | Core integrity fell below 50% 877 | -10/Materials | Discovered new exit (range 14) 1159 | -10/Materials | Discovered new exit (range 7) 1164 | -10/Materials | Prayed at D.C.S.S. Altar Unit 1184 | -10/Materials | Entered Mines 1188 | -10/Mines | X0-1V1 sent allied H-61 Shepherd (x1) 1294 | -10/Mines | Core integrity fell below 20% 1320 | -10/Mines | Discovered new exit (range 9) 1329 | -10/Mines | Entered Materials 1329 | -9/Materials | Evolved 2 slots: Propulsion x1, Utility x1 1335 | -9/Materials | Central database locked down 1348 | -9/Materials | Discovered new exit (range 11) 1373 | -9/Materials | X0-1V1 added 0b10 threat records associated with you (minor) 1426 | -9/Materials | Discovered new exit (range 9) 1625 | -9/Materials | Utility slot count permanently improved by X0-1V1 (+1) 1631 | -9/Materials | X0-1V1 sent you to a vault 1654 | -9/Materials | Identified exit to Mines 1654 | -9/Materials | Identified exit to Storage 1685 | -9/Materials | Entered Mines 1686 | -9/Mines | Assembled infested the area 1716 | -9/Mines | X0-1V1 sent hostile S-10 Pest (x3) 1724 | -9/Mines | Deemed a non-threat by the Exiles lab entrance 1725 | -9/Mines | Discovered new exit (range 5) 1728 | -9/Mines | Entered Exiles 1742 | -9/Exiles | Discovered new exit (range 15) 1750 | -9/Exiles | Met 8R-AWN 1764 | -9/Exiles | Met EX-HEX 1797 | -9/Exiles | Met EX-DEC 1812 | -9/Exiles | Learned location of Zion (-7) 1827 | -9/Exiles | Met EX-BIN 1883 | -9/Exiles | Discovered new exit (range 12) 1893 | -9/Exiles | Entered Mines 2259 | -8/Mines | Discovered new exit (range 5) 2265 | -8/Mines | Entered Materials 2265 | -8/Materials | Evolved 2 slots: Propulsion x1, Utility x1 2283 | -8/Materials | X0-1V1 sent you to a vault 2350 | -8/Materials | Heat dissipation permanently improved by X0-1V1 (+30; -150 max core) 2461 | -8/Materials | Lost 4 allies 2540 | -8/Materials | Garrison activated, responded to threat 2567 | -8/Materials | Discovered new exit (range 10) 2577 | -8/Materials | Identified exit to Garrison 2579 | -8/Materials | Entered Garrison 2603 | -8/Garrison | Triggered checkpoint 2695 | -8/Garrison | Garrison Relay disabled 2742 | -8/Garrison | X0-1V1 sent you into danger 2842 | -8/Garrison | Core integrity permanently improved by X0-1V1 (+250) 2979 | -8/Garrison | Phase Generator disabled 3049 | -8/Garrison | Triggered checkpoint 3079 | -8/Garrison | Discovered new exit (range 11) 3145 | -8/Garrison | Garrison Relay disabled 3163 | -8/Garrison | Build established: Scavenger-Mutant 3179 | -8/Garrison | Garrison Relay disabled 3181 | -8/Garrison | Garrison Relay disabled 3353 | -8/Garrison | Triggered checkpoint 3408 | -8/Garrison | Entered Factory 3408 | -7/Factory | Evolved 2 slots: Power x1, Weapon x1 3592 | -7/Factory | Identified exit to Lower Caves 3592 | -7/Factory | X0-1V1 revealed exit location to -7/Lower Caves 3638 | -7/Factory | X0-1V1 sent allied Elite (x4) 3782 | -7/Factory | Entered Lower Caves 3782 | -7/Lower Caves | Accompanied by 4 allies 3818 | -7/Lower Caves | Attracted the attention of an 0b10 base 3870 | -7/Lower Caves | Lost 4 allies 3898 | -7/Lower Caves | X0-1V1 activates XOMVISION 3919 | -7/Lower Caves | Attracted the attention of an 0b10 checkpoint 3963 | -7/Lower Caves | Met a Warlord Commander 3964 | -7/Lower Caves | Learned location of Warlord (-5) 3965 | -7/Lower Caves | Warlord Commander delivered Encrypted Comm Array 3967 | -7/Lower Caves | Found Encrypted Comm Array 3973 | -7/Lower Caves | Spotted B-75 Beast 3973 | -7/Lower Caves | X0-1V1 sent you into danger 3996 | -7/Lower Caves | Learned 8 Factory zone layouts 4103 | -7/Lower Caves | Destroyed B-75 Beast 4133 | -7/Lower Caves | Lost 8 parts (1p4n2u1w) 4149 | -7/Lower Caves | Identified exit to Lower Caves 4149 | -7/Lower Caves | X0-1V1 revealed exit location to -7/Lower Caves 4335 | -7/Lower Caves | Entered another Lower Caves area 4526 | -7/Lower Caves | Build established: Scavenger-Gunner 4529 | -7/Lower Caves | Discovered new exit (range 12) 4590 | -7/Lower Caves | Entered Zion 4630 | -7/Zion | Gained Derelict followers 4709 | -7/Zion | System corruption cleaned by Quarantine Array 4859 | -7/Zion | Learned location of Testing (-2) 4915 | -7/Zion | Learned location of Data Miner (-6) 4927 | -7/Zion | Found CR-A16's Pointy Stick 5061 | -7/Zion | Found Prototype Hackware 5061 | -7/Zion | Identified Exp. System Shield 5064 | -7/Zion | Found Prototype Processor 5064 | -7/Zion | Identified Exp. Armor Integrity Analyzer 5071 | -7/Zion | Found Prototype Processor 5071 | -7/Zion | Identified Exp. Core Analyzer 5076 | -7/Zion | Found Prototype Processor 5076 | -7/Zion | Identified Exp. Signal Interpreter 5118 | -7/Zion | Found Prototype Launcher 5118 | -7/Zion | Identified Gui. Missile Launcher 5223 | -7/Zion | Visited the Megawrench Repair Shop 5434 | -7/Zion | Learned Factory stockpile data 5530 | -7/Zion | Met Imprinter 5553 | -7/Zion | Imprinted 5555 | -7/Zion | Declared Zion's savior 5696 | -7/Zion | Megawrench repaired 8 parts 5941 | -7/Zion | Discovered new exit (range 13) 5968 | -7/Zion | Identified exit to Proximity Caves 5985 | -7/Zion | Entered Proximity Caves 5985 | -6/Proximity Caves | Accompanied by 6 allies 5990 | -6/Proximity Caves | Core integrity restored by X0-1V1 (+168) 5999 | -6/Proximity Caves | Found Alien Artifact 6098 | -6/Proximity Caves | X0-1V1 activates XOMVISION 6203 | -6/Proximity Caves | Learned location of 2 exits from Factory 6256 | -6/Proximity Caves | Attracted the attention of an 0b10 checkpoint 6354 | -6/Proximity Caves | X0-1V1 sent you into danger 6412 | -6/Proximity Caves | Spotted B-75 Beast 6415 | -6/Proximity Caves | X0-1V1 sent allied B-86 Titan (x1) 6427 | -6/Proximity Caves | Attracted the attention of an 0b10 outpost 6436 | -6/Proximity Caves | Allies destroyed B-75 Beast 6440 | -6/Proximity Caves | Lost 5 allies 6661 | -6/Proximity Caves | Discovered new exit (range 7) 6803 | -6/Proximity Caves | Entered Factory 6803 | -6/Factory | Accompanied by 3 allies 6803 | -6/Factory | Evolved 2 slots: Utility x2 6804 | -6/Factory | Identified exit to Lower Caves 6933 | -6/Factory | Identified Dimensional Node Initializer 6933 | -6/Factory | Central database locked down 7103 | -6/Factory | Retrieved Zion intel report: Active Terminals 7442 | -6/Factory | X0-1V1 foreshadows a heat wave 7496 | -6/Factory | Retrieved Zion intel report: Unaware Schematics 7524 | -6/Factory | X0-1V1 activates XOMVISION 7549 | -6/Factory | X0-1V1 put everyone to sleep 7582 | -6/Factory | Ambient heat levels rising (+10) 7591 | -6/Factory | Retrieved Zion intel report: Prototype Stockpiles 7720 | -6/Factory | Ambient heat levels rising (+10) 7739 | -6/Factory | X0-1V1 sent hostile Y-54 Guardian (x2) 7827 | -6/Factory | Cargo convoy interrupted 7926 | -6/Factory | Ambient heat levels falling (-10) 7980 | -6/Factory | Found Launcher Loader 8045 | -6/Factory | Ambient heat levels falling (-10) 8107 | -6/Factory | Weapon slot count temporarily expanded by X0-1V1 (+4) 8204 | -6/Factory | Terminal network hard line cut 8287 | -6/Factory | X0-1V1 sent hostile P-60 Hacker (x2) 8316 | -6/Factory | X0-1V1 added 0b10 threat records associated with you (major) 8321 | -6/Factory | X0-1V1 caused items to flee you 8328 | -6/Factory | X0-1V1 announced a LAN party 8331 | -6/Factory | X0-1V1 activates XOMVISION 8337 | -6/Factory | X0-1V1 woke everyone up 8339 | -6/Factory | X0-1V1 made a cryptic comment about sterilization and BL-4Z3 8348 | -6/Factory | X0-1V1 sent hostile S-27 Virus (x3) 8391 | -6/Factory | Entered Lower Caves 8392 | -6/Lower Caves | Encountered a Warlord checkpoint 8393 | -6/Lower Caves | Learned Factory stockpile data 8395 | -6/Lower Caves | Spotted B-75 Beast 8401 | -6/Lower Caves | Lost 4 parts (1p1n1u1w) 8442 | -6/Lower Caves | Weapon slot count reverted to normal (-4) 8458 | -6/Lower Caves | Destroyed B-75 Beast 8667 | -6/Lower Caves | Attracted the attention of an 0b10 outpost 8692 | -6/Lower Caves | Core integrity fell below 50% 8696 | -6/Lower Caves | System corruption reached 10% 8712 | -6/Lower Caves | Core integrity fell below 20% 8738 | -6/Lower Caves | X0-1V1 rescued you from certain death 8745 | -6/Lower Caves | Lost 15 parts (2n9u4w) 8763 | -6/Lower Caves | Discovered new exit (range 15) 8770 | -6/Lower Caves | Entered another Lower Caves area 8790 | -6/Lower Caves | Identified exit to Data Miner 8790 | -6/Lower Caves | X0-1V1 revealed exit location to -6/Data Miner 8825 | -6/Lower Caves | Entered Data Miner 8825 | -6/Data Miner | Discovered new exit (range 7) 8832 | -6/Data Miner | Met Data Miner 8848 | -6/Data Miner | Learned location of Section 7 (-2) 8848 | -6/Data Miner | Acquired the access code to Warlord's prototype stash 8853 | -6/Data Miner | Received God Mode back door access code from Data Miner 8882 | -6/Data Miner | Entered Proximity Caves 8895 | -5/Proximity Caves | Initialized slip node 8896 | -5/Proximity Caves | Core destroyed Last Messages --------------- X0-1V1's Piety Tracker suddenly appears amidst shimmering waves of color. 08861_ System corrupted: Heat flow error (+152). 08863_ Acquired X0-1V1's Piety Tracker. 08876_ System corrupted: Component data lost. LOCATION=UNKNOWN GOAL=ESCAPE 08887_ Destroyed VTOL Module. 08890_ Arm. Treads destroyed. 08891_ S-27 Virus destroyed. 08893_ M GMPMFTS,#|AIE YEQ# 08893_ X0-1V1's Piety Tracker destroyed. 08893_ P-70 Sage knocked back. 08895_ Initializer activates and latches into the ground. 08896_ Dimensional Slip Node implodes. 08896_ X0-1V1 thinks this is hilarious! 08896_ Magnetic Acceleration Cannon destroyed. 08896_ Lgt. Angular Momentum Engine destroyed. 08896_ X0-1V1 cackles wildly! Map ----- +----------------------------------------------------+ | ?????????????????????????????????????????????????? | | ?????????????????????????????????????????????????? | | ?????????????????????????????????????????????????? | | ?????????????????????????????????????????????????? | | ?????????????????????????????????????????????????? | | ?????????????????????????????????????????????????? | | ?????????????????????????????????????????????????? | | ?????????????????????????????????????????????????? | | ?????????????????????????????????????????????????? | | ?????????????????????????????????????????????????? | | ?????????????????????????????????????????????????? | | ?????????????????????????????????????????????????? | | ?????????????????????????????????????????????????? | | ?????????????????????????????????????????????????? | | ?????????????????????????????????????????????????? | | ?????????????????????????????????????????????????? | | ?????????????????????????????##????#?????????????? | | ????????????????????????????# #### ##????????????? | | ??????????????????????????## #????????????? | | ???????????????????????### ##???????????? | | ??????????????????????## %;#???????????? | | ?????????????????????## s##???????????? | | ?????????????????# ### s ##??????????? | | ?????????????????# s *% #??????????? | | ?????????????????# #??????????????? | | ??????????????????????# @ ;#???????????????? | | ??????????????????????# ###???????????????? | | ????????????????????? ## ##?????????????????? | | ??????????????????? pp ##??##??????????????????? | | ?????????????????# ######????????????????????????? | | ?????????????????#???????????????????????????????? | | ?????????????????????????????????????????????????? | | ?????????????????????????????????????????????????? | | ?????????????????????????????????????????????????? | | ?????????????????????????????????????????????????? | | ?????????????????????????????????????????????????? | | ?????????????????????????????????????????????????? | | ?????????????????????????????????????????????????? | | ?????????????????????????????????????????????????? | | ?????????????????????????????????????????????????? | | ?????????????????????????????????????????????????? | | ?????????????????????????????????????????????????? | | ?????????????????????????????????????????????????? | | ?????????????????????????????????????????????????? | | ?????????????????????????????????????????????????? | | ?????????????????????????????????????????????????? | | ?????????????????????????????????????????????????? | | ?????????????????????????????????????????????????? | | ?????????????????????????????????????????????????? | | ?????????????????????????????????????????????????? | +----------------------------------------------------+ Best States ------------- Heat Dissipation 152 Energy Generation 36 Energy Capacity 1150 Matter Stores 300 Matter Capacity 700 Sight Range 23 Terrain Scan Density 10 Armor Coverage 450 Resistance: TH 33 Power Shielding 90 Utility Shielding 33 Weapon Shielding 66 Evasion (%) 55 Targeting Accuracy 6 Target Analysis 5 Core Analysis 8 Armor Integrity Analysis 50 Recoil Reduction 3 Kinecelleration 30 Salvage Targeting 4 Offensive Hacking 10 Defensive Hacking 16 Item Schematics ----------------- Battle Cannon | -7/Zion | Free Flamer | -7/Zion | Free Hvy. Riot Gun | -7/Zion | Free Ripper | -7/Zion | Free Enh. Optical Array | -7/Zion | Archive Imp. Salvage Targeting Computer | -7/Zion | Archive Disruptor Cannon | -7/Zion | Archive Hvy. Phase Cannon | -7/Zion | Archive Launcher Guidance Computer | -7/Zion | Archive Hpw. Shock Rifle | -7/Zion | Archive Hvy. Laser | -7/Zion | Archive Jamming Amplifier | -7/Zion | Archive Imp. Field Recycling Unit | -7/Zion | Archive Matter Compressor | -7/Zion | Archive Plasma Cannon | -7/Zion | Archive Falx | -7/Zion | Archive Power Maul | -7/Zion | Archive Phase Cannon | -7/Zion | Archive Adv. Melee Analysis Suite | -6/Factory | Extracted Cld. Plasma Cannon | -6/Factory | Extracted Hammer | -6/Factory | Extracted Lgt. Fission Core | -6/Factory | Extracted Core Analyzer | -6/Factory | Extracted Sml. Matter Pod | -6/Factory | Extracted Component Analysis Suite | -6/Factory | Extracted Combat Drone Bay | -6/Data Miner | Free Lgt. Regenerative Plating | -6/Data Miner | Free Enh. Armored Leg | -6/Data Miner | Free Imp. Matter Compressor | -6/Data Miner | Free Hvy. Proton Cannon | -6/Data Miner | Free Imp. Linear Gravjet | -6/Data Miner | Free Imp. Remote Force Field | -6/Data Miner | Free HERF Cannon | -6/Data Miner | Free Imp. Antigrav System | -6/Data Miner | Free Robot Schematics ------------------ L-41 Fighter | -7/Zion | Archive G-47 Trooper | -7/Zion | Archive B-48 Gladiator | -7/Zion | Archive R-10 Processor | -6/Factory | Z-intel Y-54 Guardian | -6/Factory | Z-intel M-22 Extractor | -6/Factory | Z-intel G-50 Soldier | -6/Factory | Z-intel A-15 Conveyor | -6/Data Miner | Free S-27 Virus | -6/Data Miner | Free A-27 Freighter | -6/Data Miner | Free Fabricated ------------ Nothing Repaired ---------- Nothing Studied --------- Arm. Leg | -6/Factory | Hacked Plasma Cannon | -6/Factory | Hacked Hvy. Rocket Launcher | -6/Factory | Hacked Gravmag System | -6/Factory | Hacked Alien Tech Used ----------------- Dimensional Node Initializer Achievements -------------- Fishing Tech Challenges ------------ None Game ------ Seed TrapJammingFlightbrick Manual? 0 Play Time 01:41:45 Cumulative 336.8 hours Start 2026.08.25 @ 22:57:50 End 2026.08.28 @ 20:43:58 Sessions 7 Manual Loads 0 Difficulty Rogue Special Mode None Game No. 259 Rogue 250 Adventurer 9 Explorer 0 Win Type - Total 4 Types 3/0/0/1/0/0/0/0/0/0 Lore% 86 Gallery% 72 Achievement% 51 Wizard Run 0 Options --------- Layout 1 ASCII 0 Keyboard 0 Movement Numpad Keybinds 0 Fullscreen 1 Font 24/Smallcaps Map View 50x35 Zoom Use 0% Tactical HUD 1 Map Filters NONE Filters NONE Steam 1 RUN: 0ee40914-0eb9-4d9c-a75b-5784b448f739